fUST/lending_fUST_20260109
["ID","MTS","AMOUNT","RATE_DAILY","PERIOD"]
[401038742,1767891069265,-372.91378143,0.00029315,5]
[401038743,1767891069274,-2443.5,0.00029315,5]
[401038744,1767891069285,-500.0,0.00029315,5]
[401038745,1767891069294,-577.23801626,0.00029315,5]
[401038746,1767891069304,-387.19298105,0.00029315,5]
[401038747,1767891069313,-500.0,0.00029315,5]
[401038748,1767891069322,-617.23,0.00029315,5]
[401038749,1767891069331,-500.0,0.00029315,5]
[401038750,1767891069340,-500.0,0.00029315,5]
[401038751,1767891069350,-500.0,0.00029315,5]
[401038752,1767891069360,-509.70222933,0.00029315,5]
[401038753,1767891069369,-557.97,0.00029315,5]
[401038754,1767891069379,-254.80847086,0.00029315,5]
[401038755,1767891069388,-307.93703483,0.00029315,2]
[401038756,1767891069398,-500.0,0.00029315,5]
[401038757,1767891069408,-187.99524075,0.00029315,5]
[401038758,1767891069420,-500.0,0.00029315,5]
[401038759,1767891069431,-1606.22,0.00029315,5]
[401038760,1767891069440,-387.48,0.00029315,5]
[401038761,1767891069450,-500.0,0.00029315,5]
[401038762,1767891069459,-500.0,0.00029315,5]
[401038763,1767891069469,-500.0,0.00029315,5]
[401038764,1767891069479,-1899.8,0.00029315,5]
[401038765,1767891069489,-500.0,0.00029315,5]
[401038766,1767891069499,-500.0,0.00029315,2]
[401038767,1767891069508,-500.0,0.00029315,5]
[401038768,1767891069518,-692.57,0.00029315,5]
[401038769,1767891069529,-510.49,0.00029315,5]
[401038770,1767891069539,-500.65,0.00029315,5]
[401038771,1767891069549,-9194.49,0.00029315,3]
[401038772,1767891069558,-1384.74,0.00029315,5]
[401038773,1767891069568,-4093.0,0.00029315,5]
[401038774,1767891069577,-2464.53,0.00029315,5]
[401038775,1767891069587,-500.0,0.00029315,5]
[401038776,1767891069599,-8762.91,0.00029315,5]
[401038777,1767891069609,-2631.52,0.00029315,5]
[401038778,1767891069618,-500.0,0.00029315,5]
[401038779,1767891069627,-500.0,0.00029315,5]
[401038780,1767891069638,-500.0,0.00029315,5]
[401038781,1767891069648,-500.0,0.00029315,5]
[401038782,1767891069657,-600.7,0.00029315,5]
[401038783,1767891069667,-500.0,0.00029315,5]
[401038784,1767891069676,-500.0,0.00029315,5]
[401038785,1767891069686,-500.0,0.00029315,5]
[401038786,1767891069695,-500.0,0.00029315,5]
[401038787,1767891069705,-500.0,0.00029315,5]
[401038788,1767891069715,-500.0,0.00029315,5]
[401038789,1767891069724,-500.0,0.00029315,5]
[401038790,1767891069734,-153.0,0.00029315,30]
[401038791,1767891069744,-153.0,0.00029315,30]
[401038792,1767891069753,-153.0,0.00029315,30]
[401038793,1767891069762,-151.0,0.00029432,7]
[401038794,1767891069771,-190.583108,0.00029432,7]
[401038795,1767891069782,-151.0,0.00029432,7]
[401038796,1767891069791,-151.0,0.00029432,7]
[401038797,1767891069801,-151.0,0.00029432,7]
[401038798,1767891069810,-151.0,0.00029432,7]
[401038799,1767891069820,-303.930909,0.00029432,7]
[401038800,1767891069828,-303.930909,0.00029432,7]
[401038801,1767891069837,-303.930909,0.00029432,7]
[401038802,1767891069846,-303.930909,0.00029432,7]
[401038803,1767891069856,-151.0,0.00029432,7]
[401038804,1767891069865,-151.0,0.00029432,7]
[401038805,1767891069875,-151.0,0.00029432,7]
[401038806,1767891069886,-151.0,0.00029432,7]
[401038807,1767891069895,-1285.0039429,0.00029463,2]
[401038808,1767891069904,-600.9658097,0.00029491,30]
[401038809,1767891069914,-600.9658097,0.00029491,30]
[401038810,1767891069922,-600.9658097,0.00029491,30]
[401038811,1767891069935,-283.2656037,0.00029491,30]
[401038812,1767891069946,-5060.38784804,0.000295,2]
[401038813,1767891069955,-725.36102158,0.00029589,5]
[401038814,1767891069966,-748.46323379,0.00029589,5]
[401038815,1767891069978,-2901.44408633,0.00029589,5]
[401038816,1767891069987,-2993.85293515,0.00029589,5]
[401038817,1767891069997,-6521.72094504,0.00029589,5]
[401038818,1767891070007,-6729.43293498,0.00029589,5]
[401038819,1767891070018,-1630.16319561,0.00029589,5]
[401038820,1767891070027,-937.30796305,0.00029589,2]
[401038821,1767891070037,-1230.77,0.00029589,5]
[401038822,1767891070046,-500.0,0.00029589,5]
[401038823,1767891070056,-1000.0,0.00029589,2]
[401038824,1767891070065,-200.0,0.00029589,5]
[401038825,1767891070202,-500.0,0.00029589,5]
[401038826,1767891070213,-500.0,0.00029589,5]
[401038827,1767891070222,-500.0,0.00029589,5]
[401038828,1767891070232,-563.95,0.00029589,5]
[401038829,1767891070241,-500.0,0.00029589,5]
[401038830,1767891070251,-500.0,0.00029589,5]
[401038831,1767891070260,-225.34086943,0.00029589,5]
[401038832,1767891070270,-185.60502566,0.00029589,5]
[401038833,1767891070280,-500.0,0.00029589,5]
[401038834,1767891070290,-500.0,0.00029589,5]
[401038835,1767891070299,-500.0,0.00029589,5]
[401038836,1767891070308,-517.63,0.00029589,5]
[401038837,1767891070318,-529.83878531,0.00029589,5]
[401038838,1767891070327,-500.0,0.00029589,5]
[401038839,1767891070337,-2443.5,0.00029589,5]
[401038840,1767891070346,-500.0,0.00029589,5]
[401038841,1767891070355,-500.0,0.00029589,5]
[401038842,1767891070366,-617.23,0.00029589,5]
[401038843,1767891070382,-500.0,0.00029589,5]
[401038844,1767891070392,-500.0,0.00029589,5]
[401038845,1767891070401,-500.0,0.00029589,5]
[401038846,1767891070412,-557.97,0.00029589,5]
[401038847,1767891070423,-500.0,0.00029589,5]
[401038848,1767891070432,-256.28247508,0.00029589,5]
[401038849,1767891070441,-1606.22,0.00029589,5]
[401038850,1767891070451,-500.0,0.00029589,5]
[401038851,1767891070461,-500.0,0.00029589,5]
[401038852,1767891070470,-191.59390314,0.00029589,5]
[401038853,1767891070480,-1899.8,0.00029589,5]
[401038854,1767891070490,-500.0,0.00029589,5]
[401038855,1767891070500,-500.0,0.00029589,2]
[401038856,1767891070509,-649.02125096,0.00029589,5]
[401038857,1767891070519,-692.57,0.00029589,5]
[401038858,1767891070529,-510.49,0.00029589,5]
[401038859,1767891070539,-500.65,0.00029589,5]
[401038860,1767891070548,-9194.49,0.00029589,3]
[401038861,1767891070558,-1384.74,0.00029589,5]
[401038862,1767891070567,-4093.0,0.00029589,5]
[401038863,1767891070576,-2464.53,0.00029589,5]
[401038864,1767891070586,-500.0,0.00029589,5]
[401038865,1767891070595,-8762.91,0.00029589,5]
[401038866,1767891070604,-2631.52,0.00029589,5]
[401038867,1767891070614,-500.0,0.00029589,5]
[401038868,1767891070624,-500.0,0.00029589,5]
[401038869,1767891070633,-500.0,0.00029589,5]
[401038870,1767891070643,-500.0,0.00029589,5]
[401038871,1767891070652,-600.7,0.00029589,5]
[401038872,1767891070661,-500.0,0.00029589,5]
[401038873,1767891070671,-500.0,0.00029589,5]
[401038874,1767891070680,-500.0,0.00029589,5]
[401038875,1767891070690,-500.0,0.00029589,5]
[401038876,1767891070700,-500.0,0.00029589,5]
[401038877,1767891070709,-500.0,0.00029589,5]
[401038878,1767891070719,-176.60181751,0.00029589,5]
[401038879,1767891070728,-1050.0,0.00029589,5]
[401038880,1767891070737,-550.0,0.00029589,5]
[401038881,1767891070748,-550.0,0.00029589,5]
[401038882,1767891070758,-256.27,0.000296,2]
[401038883,1767891070768,-1668.98,0.000296,14]
[401038884,1767891070777,-435.2,0.00029611,3]
[401038885,1767891070789,-153.0,0.00029616,30]
[401038886,1767891070799,-153.0,0.00029616,30]
[401038887,1767891070808,-229.1395677,0.00029616,30]
[401038888,1767891070817,-153.0,0.00029616,30]
[401038889,1767891070827,-153.0,0.00029616,30]
[401038890,1767891070835,-5000.0,0.00029635,2]
[401038891,1767891070844,-800.0,0.00029639,2]
[401038892,1767891070854,-916.0706166,0.00029644,24]
[401038893,1767891070864,-1768.0,0.00029651,2]
[401038894,1767891070874,-500.0,0.00029654,7]
[401038895,1767891070883,-2000.0,0.00029661,10]
[401038896,1767891070893,-359.0,0.00029661,7]
[401038897,1767891070902,-354.89719301,0.00029664,2]
[401038898,1767891070912,-151.0,0.00029669,7]
[401038899,1767891070921,-2000.0,0.00029669,10]
[401038900,1767891070931,-2000.0,0.00029678,10]
[401038901,1767891070942,-2000.0,0.00029687,10]
[401038902,1767891070952,-1200.0,0.00029695,7]
[401038903,1767891070961,-2000.0,0.00029696,10]
[401038904,1767891070971,-20550.55,0.000297,2]
[401038905,1767891070983,-777.0,0.000297,2]
[401038906,1767891070992,-1325253.47645304,0.000297,2]
[401038907,1767891071002,-2000.0,0.00029705,10]
[401038908,1767891071011,-2000.0,0.00029713,10]
[401038909,1767891071020,-376.9815269,0.00029721,30]
[401038910,1767891071029,-376.9815269,0.00029721,30]
[401038911,1767891071039,-376.9815269,0.00029721,30]
[401038912,1767891071048,-2000.0,0.00029722,10]
[401038913,1767891071058,-34692.55458483,0.00029727,2]
[401038914,1767891071067,-2000.0,0.00029731,10]
[401038915,1767891071076,-2000.0,0.0002974,7]
[401038916,1767891071085,-2000.0,0.0002974,10]
[401038917,1767891071095,-500.0,0.00029745,7]
[401038918,1767891071104,-2000.0,0.00029749,10]
[401038919,1767891071113,-2000.0,0.00029757,10]
[401038920,1767891071123,-2000.0,0.00029766,10]
[401038921,1767891071133,-2000.0,0.00029775,10]
[401038922,1767891071142,-1769.0,0.00029777,2]
[401038923,1767891071151,-2000.0,0.00029784,10]
[401038924,1767891071161,-2000.0,0.00029784,10]
[401038925,1767891071170,-2000.0,0.00029793,10]
[401038926,1767891071179,-2000.0,0.00029793,10]
[401038927,1767891071188,-2000.0,0.00029801,10]
[401038928,1767891071198,-2000.0,0.00029801,10]
[401038929,1767891071208,-2000.0,0.0002981,10]
[401038930,1767891071217,-2000.0,0.0002981,10]
[401038931,1767891071227,-2000.0,0.00029819,10]
[401038932,1767891071236,-2000.0,0.00029819,10]
[401038933,1767891071245,-800.0,0.00029824,2]
[401038934,1767891071255,-800.0,0.00029824,2]
[401038935,1767891071264,-2000.0,0.00029828,10]
[401038936,1767891071274,-2000.0,0.00029828,10]
[401038937,1767891071284,-1200.0,0.00029828,7]
[401038938,1767891071294,-800.0,0.00029836,2]
[401038939,1767891071303,-2000.0,0.00029837,10]
[401038940,1767891071313,-2000.0,0.00029837,10]
[401038941,1767891071322,-2000.0,0.00029845,10]
[401038942,1767891071332,-2000.0,0.00029845,10]
[401038943,1767891071341,-2000.0,0.00029854,10]
[401038944,1767891071350,-2000.0,0.00029854,10]
[401038945,1767891071360,-2000.0,0.00029863,10]
[401038946,1767891071370,-1230.77,0.00029863,5]
[401038947,1767891071379,-500.0,0.00029863,5]
[401038948,1767891071388,-1000.0,0.00029863,2]
[401038949,1767891071398,-200.0,0.00029863,5]
[401038950,1767891071407,-500.0,0.00029863,5]
[401038951,1767891071417,-500.0,0.00029863,5]
[401038952,1767891071426,-500.0,0.00029863,5]
[401038953,1767891071436,-563.95,0.00029863,5]
[401038954,1767891071445,-500.0,0.00029863,5]
[401038955,1767891071454,-500.0,0.00029863,5]
[401038956,1767891071464,-500.0,0.00029863,5]
[401038957,1767891071473,-500.0,0.00029863,5]
[401038958,1767891071482,-500.0,0.00029863,5]
[401038959,1767891071491,-517.63,0.00029863,5]
[401038960,1767891071501,-500.0,0.00029863,5]
[401038961,1767891071510,-2443.5,0.00029863,5]
[401038962,1767891071520,-500.0,0.00029863,5]
[401038963,1767891071529,-500.0,0.00029863,5]
[401038964,1767891071540,-617.23,0.00029863,5]
[401038965,1767891071549,-151.0,0.00029863,7]
[401038966,1767891071558,-151.0,0.00029863,7]
[401038967,1767891071567,-2000.0,0.00029863,10]
[401038968,1767891071576,-500.0,0.00029863,5]
[401038969,1767891071586,-189.075092,0.00029863,7]
[401038970,1767891071595,-151.0,0.00029863,7]
[401038971,1767891071605,-189.075092,0.00029863,7]
[401038972,1767891071614,-151.0,0.00029863,7]
[401038973,1767891071625,-189.075092,0.00029863,7]
[401038974,1767891071634,-189.075092,0.00029863,7]
[401038975,1767891071644,-622.20825,0.00029863,7]
[401038976,1767891071653,-622.20825,0.00029863,7]
[401038977,1767891071662,-622.20825,0.00029863,7]
[401038978,1767891071672,-622.20825,0.00029863,7]
[401038979,1767891071681,-500.0,0.00029863,5]
[401038980,1767891071691,-500.0,0.00029863,5]
[401038981,1767891071699,-151.0,0.00029863,7]
[401038982,1767891071710,-557.97,0.00029863,5]
[401038983,1767891071719,-323.72626043,0.00029863,5]
[401038984,1767891071728,-1606.22,0.00029863,5]
[401038985,1767891071738,-500.0,0.00029863,5]
[401038986,1767891071747,-500.0,0.00029863,5]
[401038987,1767891071756,-1899.8,0.00029863,5]
[401038988,1767891071766,-516.63419983,0.00029863,5]
[401038989,1767891071775,-500.0,0.00029863,2]
[401038990,1767891071787,-692.57,0.00029863,5]
[401038991,1767891071796,-510.49,0.00029863,5]
[401038992,1767891071805,-500.65,0.00029863,5]
[401038993,1767891071815,-9194.49,0.00029863,3]
[401038994,1767891071824,-1384.74,0.00029863,5]
[401038995,1767891071833,-4093.0,0.00029863,5]
[401038996,1767891071842,-2464.53,0.00029863,5]
[401038997,1767891071852,-401.60596225,0.00029863,5]
[401038998,1767891071862,-8762.91,0.00029863,5]
[401038999,1767891071871,-2631.52,0.00029863,5]
[401039000,1767891071880,-500.0,0.00029863,5]
[401039001,1767891071890,-500.0,0.00029863,5]
[401039002,1767891071899,-500.0,0.00029863,5]
[401039003,1767891071909,-500.0,0.00029863,5]
[401039004,1767891071918,-600.7,0.00029863,5]
[401039005,1767891071928,-500.0,0.00029863,5]
[401039006,1767891071943,-500.0,0.00029863,5]
[401039007,1767891071952,-500.0,0.00029863,5]
[401039008,1767891071961,-500.0,0.00029863,5]
[401039009,1767891071971,-1200.0,0.00029868,7]
[401039010,1767891071983,-9999.99999901,0.0002987,7]
[401039011,1767891071992,-1768.0,0.00029898,7]
[401039012,1767891072003,-800.0,0.00029898,2]
[401039013,1767891072015,-875.15,0.000299,7]
[401039014,1767891072024,-1769.0,0.00029942,2]
[401039015,1767891072034,-1768.0,0.00029974,2]
[401039016,1767891072043,-1366.0,0.00029978,2]
[401039017,1767891072053,-2146.0,0.00029978,2]
[401039018,1767891072062,-628.0,0.00029978,2]
[401039019,1767891072072,-417.0,0.00029978,2]
[401039020,1767891072081,-714.0,0.00029978,2]
[401039021,1767891072092,-2000.0,0.0003,2]
[401039022,1767891072101,-508.38,0.0003,30]
[401039023,1767891072111,-12069.01025408,0.0003,30]
[401039024,1767891072120,-1125.0,0.0003,5]
[401039025,1767891072131,-165.46,0.0003,5]
[401039026,1767891072141,-300.0,0.0003,60]
[401039027,1767891072150,-269.70662881,0.0003,2]
[401039028,1767891072160,-2363.90538733,0.0003,2]
[401039029,1767891072170,-14011.26875714,0.0003,7]
[401039030,1767891072180,-1041.66666667,0.0003,30]
[401039031,1767891072189,-1041.66666667,0.0003,7]
[401039032,1767891072198,-1098.76,0.0003,30]
[401039033,1767891072208,-1041.66666667,0.0003,10]
[401039034,1767891072217,-1041.66666667,0.0003,3]
[401039035,1767891072227,-160.0,0.00030031,7]
[401039036,1767891072236,-800.0,0.00030058,2]
[401039037,1767891072245,-1098.76,0.0003006,30]
[401039038,1767891072255,-1200.0,0.00030074,7]
[401039039,1767891072264,-800.0,0.00030097,2]
[401039040,1767891072274,-152.54,0.000301,2]
[401039041,1767891072285,-250.0,0.000301,10]
[401039042,1767891072294,-4017.17054394,0.0003013,30]
[401039043,1767891072303,-4995.669737,0.0003013,3]
[401039044,1767891072313,-28365.88550987,0.0003013,20]
[401039045,1767891072322,-151.0,0.0003013,7]
[401039046,1767891072332,-151.0,0.0003013,7]
[401039047,1767891072341,-151.0,0.0003013,7]
[401039048,1767891072350,-151.0,0.0003013,7]
[401039049,1767891072360,-151.0,0.0003013,7]
[401039050,1767891072369,-1230.77,0.00030136,5]
[401039051,1767891072379,-500.0,0.00030136,5]
[401039052,1767891072389,-1000.0,0.00030136,2]
[401039053,1767891072400,-200.0,0.00030136,5]
[401039054,1767891072409,-500.0,0.00030136,5]
[401039055,1767891072418,-500.0,0.00030136,5]
[401039056,1767891072428,-500.0,0.00030136,5]
[401039057,1767891072437,-563.95,0.00030136,5]
[401039058,1767891072447,-500.0,0.00030136,5]
[401039059,1767891072457,-500.0,0.00030136,5]
[401039060,1767891072467,-500.0,0.00030136,5]
[401039061,1767891072476,-500.0,0.00030136,5]
[401039062,1767891072485,-500.0,0.00030136,5]
[401039063,1767891072494,-517.63,0.00030136,5]
[401039064,1767891072504,-516.03075292,0.00030136,5]
[401039065,1767891072514,-2443.5,0.00030136,5]
[401039066,1767891072525,-500.0,0.00030136,5]
[401039067,1767891072535,-500.0,0.00030136,5]
[401039068,1767891072544,-617.23,0.00030136,5]
[401039069,1767891072554,-500.0,0.00030136,5]
[401039070,1767891072564,-500.0,0.00030136,5]
[401039071,1767891072574,-500.0,0.00030136,5]
[401039072,1767891072584,-557.97,0.00030136,5]
[401039073,1767891072594,-1606.22,0.00030136,5]
[401039074,1767891072604,-500.0,0.00030136,5]
[401039075,1767891072613,-500.0,0.00030136,5]
[401039076,1767891072622,-1899.8,0.00030136,5]
[401039077,1767891072632,-500.0,0.00030136,2]
[401039078,1767891072641,-692.57,0.00030136,5]
[401039079,1767891072651,-510.49,0.00030136,5]
[401039080,1767891072661,-500.65,0.00030136,5]
[401039081,1767891072670,-9194.49,0.00030136,3]
[401039082,1767891072679,-1384.74,0.00030136,5]
[401039083,1767891072688,-2049.07,0.00030136,6]
[401039084,1767891072698,-4093.0,0.00030136,5]
[401039085,1767891072707,-2464.53,0.00030136,5]
[401039086,1767891072717,-8762.91,0.00030136,5]
[401039087,1767891072843,-2631.52,0.00030136,5]
[401039088,1767891072853,-500.0,0.00030136,5]
[401039089,1767891072863,-500.0,0.00030136,5]
[401039090,1767891072873,-500.0,0.00030136,5]
[401039091,1767891072882,-500.0,0.00030136,5]
[401039092,1767891072891,-600.7,0.00030136,5]
[401039093,1767891072900,-500.0,0.00030136,5]
[401039094,1767891072910,-500.0,0.00030136,5]
[401039095,1767891072919,-500.0,0.00030136,5]
[401039096,1767891072928,-500.0,0.00030136,5]
[401039097,1767891072942,-153.0,0.00030137,30]
[401039098,1767891072953,-201.66050381,0.00030137,5]
[401039099,1767891072962,-650.0,0.00030137,5]
[401039100,1767891072971,-650.0,0.00030137,5]
[401039101,1767891072982,-231.199,0.00030173,2]
[401039102,1767891072991,-250.092,0.00030173,2]
[401039103,1767891073000,-500.0,0.00030187,7]
[401039104,1767891073011,-1344.71,0.000302,2]
[401039105,1767891073021,-250.0,0.000302,10]
[401039106,1767891073030,-1200.0,0.0003021,7]
[401039107,1767891073042,-1768.0,0.0003022,2]
[401039108,1767891073052,-1768.0,0.00030258,7]
[401039109,1767891073062,-185.0,0.00030274,39]
[401039110,1767891073072,-35976.17910447,0.00030275,2]
[401039111,1767891073083,-1200.0,0.00030291,7]
[401039112,1767891073092,-1344.71,0.000303,2]
[401039113,1767891073103,-1344.71,0.000303,2]
[401039114,1767891073113,-250.0,0.000303,10]
[401039115,1767891073124,-3016.0,0.00030318,2]
[401039116,1767891073134,-2000.0,0.00030343,7]
[401039117,1767891073145,-1768.0,0.00030358,2]
[401039118,1767891073154,-220.922,0.00030376,2]
[401039119,1767891073163,-232.266,0.00030376,2]
[401039120,1767891073173,-241.59,0.00030376,2]
[401039121,1767891073183,-150.131,0.00030376,2]
[401039122,1767891073192,-2466.0,0.00030378,7]
[401039123,1767891073202,-359.0,0.00030387,2]
[401039124,1767891073211,-1344.71,0.000304,2]
[401039125,1767891073221,-1344.71,0.000304,2]
[401039126,1767891073231,-158.87,0.000304,2]
[401039127,1767891073241,-152.54,0.000304,2]
[401039128,1767891073250,-250.0,0.000304,10]
[401039129,1767891073260,-1230.77,0.0003041,5]
[401039130,1767891073269,-500.0,0.0003041,5]
[401039131,1767891073279,-1000.0,0.0003041,2]
[401039132,1767891073289,-200.0,0.0003041,5]
[401039133,1767891073299,-500.0,0.0003041,5]
[401039134,1767891073307,-500.0,0.0003041,5]
[401039135,1767891073317,-500.0,0.0003041,5]
[401039136,1767891073327,-563.95,0.0003041,5]
[401039137,1767891073337,-500.0,0.0003041,5]
[401039138,1767891073347,-500.0,0.0003041,5]
[401039139,1767891073357,-503.52606625,0.0003041,5]
[401039140,1767891073366,-500.0,0.0003041,5]
[401039141,1767891073376,-500.0,0.0003041,5]
[401039142,1767891073387,-517.63,0.0003041,5]
[401039143,1767891073397,-2443.5,0.0003041,5]
[401039144,1767891073406,-500.0,0.0003041,5]
[401039145,1767891073416,-500.0,0.0003041,5]
[401039146,1767891073425,-617.23,0.0003041,5]
[401039147,1767891073436,-500.0,0.0003041,5]
[401039148,1767891073446,-535.70421345,0.0003041,5]
[401039149,1767891073455,-500.0,0.0003041,5]
[401039150,1767891073464,-557.97,0.0003041,5]
[401039151,1767891073474,-1606.22,0.0003041,5]
[401039152,1767891073483,-500.0,0.0003041,5]
[401039153,1767891073492,-500.0,0.0003041,5]
[401039154,1767891073501,-1899.8,0.0003041,5]
[401039155,1767891073511,-500.0,0.0003041,2]
[401039156,1767891073521,-692.57,0.0003041,5]
[401039157,1767891073531,-510.49,0.0003041,5]
[401039158,1767891073542,-500.65,0.0003041,5]
[401039159,1767891073551,-9194.49,0.0003041,3]
[401039160,1767891073561,-1384.74,0.0003041,5]
[401039161,1767891073571,-4093.0,0.0003041,5]
[401039162,1767891073580,-2464.53,0.0003041,5]
[401039163,1767891073590,-8762.91,0.0003041,5]
[401039164,1767891073599,-2631.52,0.0003041,5]
[401039165,1767891073609,-500.0,0.0003041,5]
[401039166,1767891073620,-500.0,0.0003041,5]
[401039167,1767891073630,-500.0,0.0003041,5]
[401039168,1767891073639,-500.0,0.0003041,5]
[401039169,1767891073651,-600.7,0.0003041,5]
[401039170,1767891073662,-500.0,0.0003041,5]
[401039171,1767891073672,-648.8173855,0.0003041,5]
[401039172,1767891073682,-500.0,0.0003041,5]
[401039173,1767891073691,-500.0,0.0003041,5]
[401039174,1767891073702,-1344.71,0.000305,2]
[401039175,1767891073711,-250.0,0.000305,10]
[401039176,1767891073721,-163.0,0.00030507,7]
[401039177,1767891073732,-152.0,0.00030507,7]
[401039178,1767891073741,-204.62288337,0.00030507,7]
[401039179,1767891073751,-152.0,0.00030507,7]
[401039180,1767891073760,-166.0,0.00030507,7]
[401039181,1767891073770,-151.0,0.00030507,7]
[401039182,1767891073779,-153.0,0.00030507,7]
[401039183,1767891073791,-166.0,0.00030507,7]
[401039184,1767891073800,-153.0,0.00030507,7]
[401039185,1767891073810,-151.0,0.00030507,7]
[401039186,1767891073820,-153.0,0.00030507,7]
[401039187,1767891073829,-153.0,0.00030507,7]
[401039188,1767891073839,-166.0,0.00030507,7]
[401039189,1767891073848,-151.0,0.00030507,7]
[401039190,1767891073857,-297.01652411,0.00030507,7]
[401039191,1767891073866,-166.0,0.00030507,7]
[401039192,1767891073876,-151.0,0.00030507,7]
[401039193,1767891073885,-151.0,0.00030507,7]
[401039194,1767891073894,-151.0,0.00030507,7]
[401039195,1767891073904,-151.0,0.00030507,7]
[401039196,1767891073912,-151.0,0.00030507,7]
[401039197,1767891073922,-151.0,0.00030507,7]
[401039198,1767891073932,-151.0,0.00030507,7]
[401039199,1767891073944,-151.0,0.00030507,7]
[401039200,1767891073953,-151.0,0.00030507,7]
[401039201,1767891073962,-151.0,0.00030507,7]
[401039202,1767891073971,-151.0,0.00030507,7]
[401039203,1767891073982,-151.0,0.00030507,7]
[401039204,1767891073991,-151.0,0.00030507,7]
[401039205,1767891074001,-151.0,0.00030507,7]
[401039206,1767891074012,-151.0,0.00030507,7]
[401039207,1767891074021,-187.9115595,0.00030507,7]
[401039208,1767891074031,-152.0,0.00030507,7]
[401039209,1767891074042,-347.0,0.00030507,7]
[401039210,1767891074051,-200.38257444,0.00030507,7]
[401039211,1767891074060,-152.0,0.00030507,7]
[401039212,1767891074069,-347.0,0.00030507,7]
[401039213,1767891074079,-152.0,0.00030507,7]
[401039214,1767891074088,-347.0,0.00030507,7]
[401039215,1767891074097,-336.0,0.00030507,7]
[401039216,1767891074107,-152.0,0.00030507,7]
[401039217,1767891074116,-347.0,0.00030507,7]
[401039218,1767891074126,-336.0,0.00030507,7]
[401039219,1767891074136,-152.0,0.00030507,7]
[401039220,1767891074145,-347.0,0.00030507,7]
[401039221,1767891074155,-336.0,0.00030507,7]
[401039222,1767891074164,-289.301333,0.00030507,7]
[401039223,1767891074173,-347.0,0.00030507,7]
[401039224,1767891074183,-336.0,0.00030507,7]
[401039225,1767891074192,-152.0,0.00030507,7]
[401039226,1767891074201,-336.0,0.00030507,7]
[401039227,1767891074210,-347.0,0.00030507,7]
[401039228,1767891074219,-152.0,0.00030507,7]
[401039229,1767891074228,-336.0,0.00030507,7]
[401039230,1767891074238,-347.0,0.00030507,7]
[401039231,1767891074247,-152.0,0.00030507,7]
[401039232,1767891074256,-336.0,0.00030507,7]
[401039233,1767891074266,-347.0,0.00030507,7]
[401039234,1767891074275,-152.0,0.00030507,7]
[401039235,1767891074284,-336.0,0.00030507,7]
[401039236,1767891074294,-347.0,0.00030507,7]
[401039237,1767891074303,-152.0,0.00030507,7]
[401039238,1767891074313,-336.0,0.00030507,7]
[401039239,1767891074323,-347.0,0.00030507,7]
[401039240,1767891074332,-152.0,0.00030507,7]
[401039241,1767891074341,-336.0,0.00030507,7]